[Event "The Schackveckan 2023: Göteborg open"]
[Site "Göteborgs schackcentrum, Vegagatan 20, Gothenburg, Sweden"]
[Date "2023.08.11"]
[Round "4.16"]
[White "Al Saab, Ranny"]
[Black "Wennerlund, Elias"]
[Result "0-1"]
[TimeControl "15 minutes + 5 seconds per move from move one (Round 1 - 4) / 90 minutes + 30 seconds per move from move one (Round 5 - 8)"]
[WhiteFideId "1768360"]
[BlackFideId "1742353"]
[WhiteElo "1598"]
[BlackElo "1710"]

1. e4 {[%clk 00:15:08]} {[%emt 00:00:01]} Nf6 {[%clk 00:15:08]} {[%emt
00:00:02]} 2. e5 {[%clk 00:15:11]} {[%emt 00:00:02]} Nd5 {[%clk 00:15:12]} 3.
c4 {[%clk 00:15:15]} {[%emt 00:00:01]} Nb6 {[%clk 00:15:15]} {[%emt 00:00:01]}
4. d4 {[%clk 00:15:16]} {[%emt 00:00:05]} d6 {[%clk 00:15:19]} {[%emt
00:00:01]} 5. exd6 {[%clk 00:15:18]} {[%emt 00:00:03]} exd6 {[%clk 00:15:22]}
{[%emt 00:00:02]} 6. Nf3 {[%clk 00:15:12]} {[%emt 00:00:11]} Bg4 {[%clk
00:15:25]} {[%emt 00:00:03]} 7. Be3 {[%clk 00:15:09]} {[%emt 00:00:08]} Be7
{[%clk 00:15:27]} {[%emt 00:00:02]} 8. Bd3 {[%clk 00:15:08]} {[%emt 00:00:06]}
Na6 {[%clk 00:15:25]} {[%emt 00:00:07]} 9. a3 {[%clk 00:14:56]} {[%emt
00:00:17]} c6 {[%clk 00:15:28]} {[%emt 00:00:02]} 10. Nbd2 {[%clk 00:14:29]}
{[%emt 00:00:31]} Bf6 {[%clk 00:15:30]} {[%emt 00:00:04]} 11. Rb1 {[%clk
00:14:04]} {[%emt 00:00:30]} Nc7 {[%clk 00:15:33]} {[%emt 00:00:02]} 12. Qc2
{[%clk 00:13:47]} {[%emt 00:00:22]} d5 {[%clk 00:15:21]} {[%emt 00:00:18]} 13.
c5 {[%clk 00:13:27]} {[%emt 00:00:24]} Nd7 {[%clk 00:15:24]} {[%emt 00:00:01]}
14. O-O {[%clk 00:13:17]} {[%emt 00:00:17]} g6 {[%clk 00:15:25]} {[%emt
00:00:03]} 15. Rfe1 {[%clk 00:13:07]} {[%emt 00:00:14]} O-O {[%clk 00:15:27]}
{[%emt 00:00:04]} 16. h3 {[%clk 00:12:54]} {[%emt 00:00:18]} Bxf3 {[%clk
00:15:30]} {[%emt 00:00:02]} 17. Nxf3 {[%clk 00:12:58]} {[%emt 00:00:02]} Ne6
{[%clk 00:15:12]} {[%emt 00:00:23]} 18. b4 {[%clk 00:12:33]} {[%emt 00:00:29]}
a5 {[%clk 00:15:15]} {[%emt 00:00:03]} 19. b5 {[%clk 00:12:21]} {[%emt
00:00:17]} Qc7 {[%clk 00:14:10]} {[%emt 00:01:09]} 20. b6 {[%clk 00:11:39]}
{[%emt 00:00:47]} Qd8 {[%clk 00:13:41]} {[%emt 00:00:35]} 21. Qb2 {[%clk
00:11:10]} {[%emt 00:00:32]} Ndxc5 {[%clk 00:13:04]} {[%emt 00:00:44]} 22. Bf1
{[%clk 00:10:11]} {[%emt 00:01:02]} Ne4 {[%clk 00:12:54]} {[%emt 00:00:17]} 23.
Bd3 {[%clk 00:09:47]} {[%emt 00:00:29]} N6c5 {[%clk 00:12:25]} {[%emt
00:00:33]} 24. Bc2 {[%clk 00:09:17]} {[%emt 00:00:30]} Nd6 {[%clk 00:12:15]}
{[%emt 00:00:20]} 25. Qc1 {[%clk 00:08:51]} {[%emt 00:00:25]} Nce4 {[%clk
00:12:18]} {[%emt 00:00:09]} 26. Bd3 {[%clk 00:07:50]} {[%emt 00:01:05]} Re8
{[%clk 00:12:07]} {[%emt 00:00:16]} 27. Nd2 {[%clk 00:07:07]} {[%emt 00:00:45]}
Re6 {[%clk 00:09:06]} {[%emt 00:03:10]} 28. Nb3 {[%clk 00:06:33]} {[%emt
00:00:39]} Qe8 {[%clk 00:08:42]} {[%emt 00:00:29]} 29. f3 {[%clk 00:04:46]}
{[%emt 00:01:51]} Ng3 {[%clk 00:08:20]} {[%emt 00:00:27]} 30. Bf4 {[%clk
00:03:28]} {[%emt 00:01:19]} Ndf5 {[%clk 00:08:01]} {[%emt 00:00:28]} 31. Bxg3
{[%clk 00:02:49]} {[%emt 00:00:44]} Nxg3 {[%clk 00:08:03]} {[%emt 00:00:03]} 32.
Qc3 {[%clk 00:02:04]} {[%emt 00:00:51]} a4 {[%clk 00:07:03]} {[%emt 00:01:05]}
33. Rxe6 {[%clk 00:01:38]} {[%emt 00:00:30]} fxe6 {[%clk 00:06:07]} {[%emt
00:01:01]} 34. Nc5 {[%clk 00:01:30]} {[%emt 00:00:11]} Qf7 {[%clk 00:05:51]}
{[%emt 00:00:24]} 35. Re1 {[%clk 00:01:11]} {[%emt 00:00:22]} Re8 {[%clk
00:05:39]} {[%emt 00:00:19]} 36. Kh2 {[%clk 00:01:00]} {[%emt 00:00:12]} Nf5
{[%clk 00:04:55]} {[%emt 00:00:53]} 37. Bxf5 {[%clk 00:00:53]} {[%emt
00:00:11]} exf5 {[%clk 00:04:58]} {[%emt 00:00:03]} 38. Rxe8+ {[%clk 00:00:46]}
{[%emt 00:00:12]} Qxe8 {[%clk 00:05:02]} {[%emt 00:00:01]} 39. Nxa4 {[%clk
00:00:28]} {[%emt 00:00:23]} Qb8+ {[%clk 00:04:54]} {[%emt 00:00:12]} 40. Kg1
{[%clk 00:00:26]} {[%emt 00:00:06]} Qf4 {[%clk 00:04:58]} {[%emt 00:00:02]} 41.
Kf1 {[%clk 00:00:07]} {[%emt 00:00:24]} Bxd4 {[%clk 00:04:59]} {[%emt
00:00:04]} 42. Qe1 {[%clk 00:00:09]} {[%emt 00:00:01]} Be3 {[%clk 00:04:53]}
{[%emt 00:00:13]} 43. Nc3 {[%clk 00:00:12]} {[%emt 00:00:03]} d4 {[%clk
00:04:41]} {[%emt 00:00:17]} 44. Ne2 {[%clk 00:00:14]} {[%emt 00:00:02]} Qh2
{[%clk 00:04:26]} {[%emt 00:00:20]} 0-1

[Event "The Schackveckan 2023: Göteborg open"]
[Site "Göteborgs schackcentrum, Vegagatan 20, Gothenburg, Sweden"]
[Date "2023.08.11"]
[Round "4.17"]
[White "Eldh, Hjalmar"]
[Black "Imani Lasaki, Hamed"]
[Result "1-0"]
[TimeControl "15 minutes + 5 seconds per move from move one (Round 1 - 4) / 90 minutes + 30 seconds per move from move one (Round 5 - 8)"]
[WhiteFideId "1767968"]
[BlackFideId "1766970"]
[WhiteElo "1738"]
[BlackElo "1624"]

1. e4 {[%clk 00:15:08]} {[%emt 00:00:02]} e5 {[%clk 00:15:05]} {[%emt
00:00:06]} 2. Nf3 {[%clk 00:15:11]} {[%emt 00:00:01]} Nc6 {[%clk 00:15:09]}
{[%emt 00:00:01]} 3. Bc4 {[%clk 00:15:14]} {[%emt 00:00:02]} Bc5 {[%clk
00:15:06]} {[%emt 00:00:08]} 4. c3 {[%clk 00:15:15]} {[%emt 00:00:04]} d6
{[%clk 00:14:51]} {[%emt 00:00:21]} 5. d4 {[%clk 00:15:15]} {[%emt 00:00:04]}
Bb6 {[%clk 00:14:32]} {[%emt 00:00:25]} 6. dxe5 {[%emt 00:01:05]} dxe5 {[%clk
00:13:09]} {[%emt 00:00:59]} 7. Qxd8+ {[%clk 00:14:41]} {[%emt 00:00:07]} Kxd8
{[%clk 00:12:47]} {[%emt 00:00:27]} 8. Bxf7 {[%clk 00:14:33]} {[%emt 00:00:12]}
Nf6 {[%clk 00:11:22]} {[%emt 00:01:31]} 9. Bd5 {[%clk 00:13:41]} {[%emt
00:00:58]} Bg4 {[%clk 00:09:59]} {[%emt 00:01:28]} 10. Bxc6 {[%clk 00:13:16]}
{[%emt 00:00:30]} Bxf3 {[%clk 00:09:01]} {[%emt 00:01:03]} 11. gxf3 {[%clk
00:13:17]} {[%emt 00:00:03]} bxc6 {[%clk 00:09:01]} {[%emt 00:00:05]} 12. Be3
{[%clk 00:13:11]} {[%emt 00:00:10]} Ke7 {[%clk 00:08:47]} {[%emt 00:00:20]} 13.
Nd2 {[%clk 00:13:03]} {[%emt 00:00:12]} Rhd8 {[%clk 00:08:37]} {[%emt
00:00:15]} 14. O-O-O {[%clk 00:12:30]} {[%emt 00:00:40]} Bxe3 {[%clk 00:08:11]}
{[%emt 00:00:31]} 15. fxe3 {[%clk 00:12:31]} {[%emt 00:00:03]} Rd3 {[%clk
00:07:59]} {[%emt 00:00:18]} 16. Nc4 {[%clk 00:12:15]} {[%emt 00:00:21]} Rxd1+
{[%clk 00:06:49]} {[%emt 00:01:15]} 17. Rxd1 {[%clk 00:12:16]} {[%emt
00:00:03]} Nd7 {[%clk 00:05:42]} {[%emt 00:01:12]} 18. Na5 {[%clk 00:10:47]}
{[%emt 00:01:35]} c5 {[%clk 00:05:40]} {[%emt 00:00:07]} 19. Kc2 {[%clk
00:10:28]} {[%emt 00:00:23]} a6 {[%clk 00:04:21]} {[%emt 00:01:25]} 20. Nc6+
{[%clk 00:09:31]} {[%emt 00:01:01]} Ke6 {[%clk 00:04:02]} {[%emt 00:00:25]} 21.
f4 {[%clk 00:09:22]} {[%emt 00:00:13]} exf4 {[%clk 00:04:00]} {[%emt 00:00:08]}
22. exf4 {[%clk 00:09:25]} {[%emt 00:00:02]} g6 {[%clk 00:03:18]} {[%emt
00:00:48]} 23. f5+ {[%clk 00:09:23]} {[%emt 00:00:07]} gxf5 {[%clk 00:03:04]}
{[%emt 00:00:19]} 24. exf5+ {[%clk 00:09:27]} Kxf5 {[%clk 00:02:52]} {[%emt
00:00:17]} 25. Rxd7 {[%clk 00:09:30]} {[%emt 00:00:02]} h5 {[%clk 00:02:33]}
{[%emt 00:00:24]} 26. Rxc7 {[%clk 00:09:27]} {[%emt 00:00:08]} Kg4 {[%clk
00:02:23]} {[%emt 00:00:15]} 27. Ne5+ {[%clk 00:09:07]} {[%emt 00:00:24]} Kh3
{[%clk 00:02:19]} {[%emt 00:00:10]} 28. Rxc5 {[%clk 00:08:58]} {[%emt
00:00:14]} Rf8 {[%clk 00:01:59]} {[%emt 00:00:24]} 29. Ng6 {[%clk 00:08:56]}
{[%emt 00:00:08]} Rf2+ {[%clk 00:02:02]} {[%emt 00:00:03]} 30. Kb3 {[%clk
00:08:59]} {[%emt 00:00:01]} Kg4 {[%clk 00:00:56]} {[%emt 00:01:11]} 31. h3+
{[%clk 00:08:51]} {[%emt 00:00:13]} Kxh3 {[%clk 00:00:40]} {[%emt 00:00:21]} 32.
Rxh5 {[%clk 00:08:52]} {[%emt 00:00:03]} Kg4 {[%clk 00:00:36]} {[%emt
00:00:10]} 33. Ra5 {[%clk 00:08:47]} {[%emt 00:00:10]} Rf6 {[%clk 00:00:27]}
{[%emt 00:00:13]} 34. Ne5+ {[%clk 00:08:44]} {[%emt 00:00:09]} Kf4 {[%clk
00:00:18]} {[%emt 00:00:15]} 35. Nc4 {[%clk 00:08:23]} {[%emt 00:00:25]} Rc6
{[%clk 00:00:09]} {[%emt 00:00:14]} 36. Kb4 {[%clk 00:08:03]} {[%emt 00:00:26]}
Ke4 {[%clk 00:00:08]} {[%emt 00:00:05]} 37. Re5 {[%clk 00:07:43]} {[%emt
00:00:25]} Kd3 {[%clk 00:00:06]} {[%emt 00:00:07]} 38. Re3+ {[%clk 00:07:21]}
{[%emt 00:00:27]} Kc2 {[%clk 00:00:08]} {[%emt 00:00:03]} 39. Rh3 {[%clk
00:06:28]} {[%emt 00:00:59]} Rg6 {[%clk 00:00:08]} {[%emt 00:00:05]} 40. Ne5
{[%clk 00:06:19]} {[%emt 00:00:13]} Rg5 {[%clk 00:00:08]} {[%emt 00:00:06]} 41.
Re3 {[%clk 00:06:06]} {[%emt 00:00:17]} Rh5 {[%clk 00:00:10]} {[%emt 00:00:03]}
42. c4 {[%clk 00:05:47]} {[%emt 00:00:24]} Kxb2 {[%clk 00:00:07]} {[%emt
00:00:09]} 43. c5 {[%clk 00:05:45]} {[%emt 00:00:06]} Kxa2 {[%emt 00:00:06]} 44.
c6 {[%clk 00:05:45]} {[%emt 00:00:05]} Rh4+ {[%clk 00:00:10]} {[%emt 00:00:02]}
45. Kc5 {[%clk 00:05:44]} {[%emt 00:00:05]} Rh1 {[%clk 00:00:09]} {[%emt
00:00:05]} 46. c7 {[%clk 00:05:43]} {[%emt 00:00:07]} Rh8 {[%clk 00:00:09]}
{[%emt 00:00:05]} 47. Kb6 {[%clk 00:05:41]} {[%emt 00:00:07]} Rh6+ {[%clk
00:00:06]} {[%emt 00:00:09]} 48. Nc6 {[%clk 00:05:35]} {[%emt 00:00:11]} Rh8
{[%clk 00:00:09]} 49. Nd8 {[%clk 00:05:36]} {[%emt 00:00:03]} Rh6+ {[%clk
00:00:13]} {[%emt 00:00:02]} 50. Re6 {[%clk 00:05:39]} {[%emt 00:00:03]} Rh1
{[%clk 00:00:09]} {[%emt 00:00:09]} 51. c8=Q {[%clk 00:05:39]} {[%emt
00:00:05]} Rb1+ {[%clk 00:00:11]} {[%emt 00:00:02]} 52. Ka5 {[%clk 00:05:40]}
{[%emt 00:00:04]} Rb5+ {[%emt 00:00:11]} 1-0

[Event "The Schackveckan 2023: Göteborg open"]
[Site "Göteborgs schackcentrum, Vegagatan 20, Gothenburg, Sweden"]
[Date "2023.08.12"]
[Round "5.1"]
[White "Bjorklund, Thomas"]
[Black "Ustianovich, Nazar"]
[Result "0-1"]
[TimeControl "15 minutes + 5 seconds per move from move one (Round 1 - 4) / 90 minutes + 30 seconds per move from move one (Round 5 - 8)"]
[BlackTitle "FM"]
[WhiteFideId "1724576"]
[BlackFideId "14109778"]
[WhiteElo "2139"]
[BlackElo "2314"]

1. e4 {[%clk 01:30:47]} {[%emt 00:00:13]} c5 {[%clk 01:30:41]} {[%emt
00:00:19]} 2. Nf3 {[%clk 01:31:11]} {[%emt 00:00:05]} e6 {[%clk 01:30:32]}
{[%emt 00:00:40]} 3. c3 {[%clk 01:31:18]} {[%emt 00:00:23]} Nf6 {[%clk
01:30:57]} {[%emt 00:00:05]} 4. Qc2 {[%clk 01:31:32]} {[%emt 00:00:16]} Nc6
{[%clk 01:30:45]} {[%emt 00:00:43]} 5. Bb5 {[%clk 01:31:11]} {[%emt 00:00:51]}
Qb6 {[%clk 01:31:08]} {[%emt 00:00:06]} 6. a4 {[%clk 01:31:18]} {[%emt
00:00:23]} a6 {[%clk 01:31:19]} {[%emt 00:00:20]} 7. Bc4 {[%clk 01:31:03]}
{[%emt 00:00:44]} d5 {[%clk 01:31:23]} {[%emt 00:00:26]} 8. exd5 {[%clk
01:31:22]} {[%emt 00:00:12]} exd5 {[%clk 01:31:52]} 9. Ba2 {[%clk 01:31:35]}
{[%emt 00:00:17]} Bg4 {[%clk 01:31:30]} {[%emt 00:00:51]} 10. Qd3 {[%clk
01:30:29]} {[%emt 00:01:37]} O-O-O {[%clk 01:31:15]} {[%emt 00:00:45]} 11. O-O
{[%clk 01:30:27]} {[%emt 00:00:31]} Bd6 {[%clk 01:30:35]} {[%emt 00:01:10]} 12.
h3 {[%clk 01:28:16]} {[%emt 00:02:42]} Bh5 {[%clk 01:22:16]} {[%emt 00:08:48]}
13. a5 {[%clk 01:24:49]} {[%emt 00:03:57]} Qc7 {[%clk 01:22:06]} {[%emt
00:00:40]} 14. Qf5+ {[%clk 01:23:09]} {[%emt 00:02:10]} Kb8 {[%clk 01:21:47]}
{[%emt 00:00:50]} 15. d4 {[%clk 01:23:05]} {[%emt 00:00:34]} c4 {[%clk
01:20:37]} {[%emt 00:01:40]} 16. b3 {[%clk 01:17:05]} {[%emt 00:06:29]} Ne7
{[%clk 01:18:14]} {[%emt 00:02:54]} 17. Qc2 {[%clk 01:16:48]} {[%emt 00:00:47]}
Bxf3 {[%clk 01:18:38]} {[%emt 00:00:06]} 18. gxf3 {[%clk 01:17:15]} {[%emt
00:00:03]} Qd7 {[%clk 01:18:34]} {[%emt 00:00:34]} 19. Kg2 {[%clk 01:17:25]}
{[%emt 00:00:19]} Ng6 {[%clk 01:18:44]} {[%emt 00:00:20]} 20. Rh1 {[%clk
01:17:45]} {[%emt 00:00:10]} Nh4+ {[%clk 01:19:05]} {[%emt 00:00:09]} 21. Kf1
{[%clk 01:18:14]} {[%emt 00:00:02]} Nxf3 {[%clk 01:11:01]} {[%emt 00:08:34]} 22.
bxc4 {[%clk 01:18:31]} {[%emt 00:00:13]} Ne4 {[%clk 01:04:31]} {[%emt
00:07:00]} 23. Nd2 {[%clk 01:16:19]} {[%emt 00:02:42]} Nfxd2+ {[%clk 01:04:28]}
{[%emt 00:00:32]} 24. Bxd2 {[%clk 01:16:39]} {[%emt 00:00:11]} Qf5 {[%clk
01:04:51]} {[%emt 00:00:07]} 25. Ke2 {[%clk 01:15:28]} {[%emt 00:01:41]} Qxf2+
{[%clk 01:03:29]} {[%emt 00:01:51]} 26. Kd3 {[%clk 01:15:49]} {[%emt 00:00:09]}
Nc5+ {[%clk 01:03:24]} {[%emt 00:00:35]} 0-1

[Event "The Schackveckan 2023: Göteborg open"]
[Site "Göteborgs schackcentrum, Vegagatan 20, Gothenburg, Sweden"]
[Date "2023.08.12"]
[Round "5.2"]
[White "Buzleta, Patrik"]
[Black "Hector, Jonny"]
[Result "0-1"]
[TimeControl "15 minutes + 5 seconds per move from move one (Round 1 - 4) / 90 minutes + 30 seconds per move from move one (Round 5 - 8)"]
[BlackTitle "GM"]
[WhiteFideId "1755463"]
[BlackFideId "1700090"]
[WhiteElo "1604"]
[BlackElo "2466"]

1. h3 {[%clk 01:30:56]} {[%emt 00:00:04]} d5 {[%clk 01:29:35]} {[%emt
00:01:24]} 2. Nf3 {[%clk 01:30:48]} {[%emt 00:00:39]} Nc6 {[%clk 01:29:29]}
{[%emt 00:00:36]} 3. d4 {[%clk 01:29:46]} {[%emt 00:01:32]} Bf5 {[%clk
01:28:36]} {[%emt 00:01:21]} 4. a3 {[%clk 01:28:50]} {[%emt 00:01:28]} e6
{[%clk 01:24:38]} {[%emt 00:04:27]} 5. e3 {[%clk 01:28:27]} {[%emt 00:00:54]}
Bd6 {[%clk 01:24:31]} {[%emt 00:00:36]} 6. Bb5 {[%clk 01:28:08]} {[%emt
00:00:50]} Nge7 {[%clk 01:24:20]} {[%emt 00:00:40]} 7. O-O {[%clk 01:21:26]}
{[%emt 00:07:14]} O-O {[%clk 01:22:34]} {[%emt 00:02:14]} 8. Nh4 {[%clk
01:19:31]} {[%emt 00:02:26]} Be4 {[%clk 01:16:17]} {[%emt 00:06:47]} 9. f3
{[%clk 01:16:16]} {[%emt 00:03:45]} Bxc2 {[%clk 01:11:52]} {[%emt 00:04:55]} 10.
Qxc2 {[%clk 01:16:21]} {[%emt 00:00:24]} Bg3 {[%clk 01:12:09]} {[%emt
00:00:13]} 11. Bd3 {[%clk 01:15:46]} {[%emt 00:01:06]} f5 {[%clk 01:10:49]}
{[%emt 00:01:50]} 12. Nxf5 {[%clk 01:15:48]} {[%emt 00:00:28]} exf5 {[%clk
01:08:48]} {[%emt 00:02:30]} 13. f4 {[%clk 01:13:24]} {[%emt 00:02:55]} Qd6
{[%clk 01:02:11]} {[%emt 00:07:06]} 14. Rf3 {[%clk 01:07:23]} {[%emt 00:06:32]}
Bh4 {[%clk 01:01:23]} {[%emt 00:01:17]} 15. b4 {[%clk 01:04:06]} {[%emt
00:03:48]} Nd8 {[%clk 00:59:41]} {[%emt 00:02:12]} 16. g3 {[%clk 01:01:34]}
{[%emt 00:03:05]} Bf6 {[%clk 00:59:59]} {[%emt 00:00:08]} 17. h4 {[%clk
00:58:28]} {[%emt 00:03:37]} Ne6 {[%clk 00:58:24]} {[%emt 00:02:04]} 18. Bb2
{[%clk 00:58:02]} {[%emt 00:00:57]} a5 {[%clk 00:56:13]} {[%emt 00:02:40]} 19.
b5 {[%clk 00:53:28]} {[%emt 00:05:05]} c5 {[%clk 00:55:17]} {[%emt 00:01:25]}
20. bxc6 {[%clk 00:52:46]} {[%emt 00:01:13]} bxc6 {[%clk 00:54:38]} {[%emt
00:01:09]} 21. a4 {[%clk 00:48:57]} {[%emt 00:04:20]} c5 {[%clk 00:52:24]}
{[%emt 00:02:44]} 22. dxc5 {[%clk 00:36:41]} {[%emt 00:12:45]} Nxc5 {[%clk
00:51:28]} {[%emt 00:01:25]} 23. Bxf6 {[%clk 00:30:44]} {[%emt 00:06:27]} Rxf6
{[%clk 00:51:33]} {[%emt 00:00:25]} 24. Nc3 {[%clk 00:30:13]} {[%emt 00:01:02]}
Rc8 {[%clk 00:48:02]} {[%emt 00:04:00]} 25. Rd1 {[%clk 00:29:37]} {[%emt
00:01:07]} Ne4 {[%clk 00:44:36]} {[%emt 00:03:56]} 26. Bxe4 {[%clk 00:28:56]}
{[%emt 00:01:11]} fxe4 {[%clk 00:44:57]} {[%emt 00:00:09]} 27. Rf2 {[%clk
00:28:50]} {[%emt 00:00:36]} Qc5 {[%clk 00:43:26]} {[%emt 00:02:00]} 28. Nxd5
{[%clk 00:23:15]} {[%emt 00:06:05]} Qxc2 {[%clk 00:43:06]} {[%emt 00:00:50]} 29.
Nxe7+ {[%clk 00:17:28]} {[%emt 00:06:18]} Kf7 {[%clk 00:43:21]} {[%emt
00:00:14]} 30. Rxc2 {[%clk 00:17:44]} {[%emt 00:00:15]} Rxc2 {[%clk 00:43:45]}
{[%emt 00:00:05]} 31. Nd5 {[%clk 00:16:09]} {[%emt 00:02:05]} Rd6 {[%clk
00:44:03]} {[%emt 00:00:12]} 32. Rd4 {[%clk 00:16:33]} {[%emt 00:00:08]} Rc5
{[%clk 00:43:44]} {[%emt 00:00:47]} 33. Rxe4 {[%clk 00:14:42]} {[%emt
00:02:21]} Rdxd5 {[%clk 00:43:56]} {[%emt 00:00:20]} 34. Kf2 {[%clk 00:14:48]}
{[%emt 00:00:23]} Rd7 {[%clk 00:43:18]} {[%emt 00:01:07]} 35. g4 {[%clk
00:14:17]} {[%emt 00:01:02]} Re7 {[%clk 00:43:14]} {[%emt 00:00:33]} 36. Rd4
{[%clk 00:14:28]} {[%emt 00:00:19]} Rc2+ {[%clk 00:43:36]} {[%emt 00:00:08]}
0-1

[Event "The Schackveckan 2023: Göteborg open"]
[Site "Göteborgs schackcentrum, Vegagatan 20, Gothenburg, Sweden"]
[Date "2023.08.12"]
[Round "5.3"]
[White "Olsson, William"]
[Black "Yang, Mandi"]
[Result "1-0"]
[TimeControl "15 minutes + 5 seconds per move from move one (Round 1 - 4) / 90 minutes + 30 seconds per move from move one (Round 5 - 8)"]
[WhiteTitle "FM"]
[WhiteFideId "1741721"]
[BlackFideId "1774778"]
[WhiteElo "2400"]
[BlackElo "1457"]

1. Nf3 {[%clk 01:30:57]} {[%emt 00:00:03]} c5 {[%clk 01:30:23]} {[%emt
00:00:38]} 2. c4 {[%clk 01:31:16]} {[%emt 00:00:10]} Nc6 {[%clk 01:30:39]}
{[%emt 00:00:14]} 3. Nc3 {[%clk 01:31:36]} {[%emt 00:00:10]} Nf6 {[%clk
01:30:53]} {[%emt 00:00:16]} 4. g3 {[%clk 01:32:02]} {[%emt 00:00:05]} g6
{[%clk 01:30:21]} {[%emt 00:01:02]} 5. Bg2 {[%clk 01:32:27]} {[%emt 00:00:05]}
Bg7 {[%clk 01:30:43]} {[%emt 00:00:08]} 6. e4 {[%clk 01:32:41]} {[%emt
00:00:16]} d6 {[%clk 01:30:55]} {[%emt 00:00:18]} 7. O-O {[%clk 01:32:44]}
{[%emt 00:00:27]} O-O {[%clk 01:31:20]} {[%emt 00:00:05]} 8. a3 {[%clk
01:33:07]} {[%emt 00:00:07]} Be6 {[%clk 01:28:37]} {[%emt 00:03:13]} 9. d3
{[%clk 01:33:26]} {[%emt 00:00:10]} Qc8 {[%clk 01:26:47]} {[%emt 00:02:21]} 10.
Re1 {[%clk 01:33:39]} {[%emt 00:00:16]} Bh3 {[%clk 01:26:49]} {[%emt 00:00:29]}
11. Bh1 {[%clk 01:34:01]} {[%emt 00:00:07]} Bg4 {[%clk 01:24:41]} {[%emt
00:02:39]} 12. Qd2 {[%clk 01:32:09]} {[%emt 00:02:22]} e6 {[%clk 01:16:18]}
{[%emt 00:08:53]} 13. Rb1 {[%clk 01:31:37]} {[%emt 00:01:02]} Bxf3 {[%clk
01:15:35]} {[%emt 00:01:12]} 14. Bxf3 {[%clk 01:31:56]} {[%emt 00:00:11]} Nd4
{[%clk 01:12:38]} {[%emt 00:03:28]} 15. Bg2 {[%clk 01:32:01]} {[%emt 00:00:25]}
Rb8 {[%clk 01:11:10]} {[%emt 00:01:58]} 16. b4 {[%clk 01:30:43]} {[%emt
00:01:47]} Nd7 {[%clk 01:08:45]} {[%emt 00:02:56]} 17. Ne2 {[%clk 01:28:24]}
{[%emt 00:02:49]} e5 {[%clk 01:04:35]} {[%emt 00:04:40]} 18. Nxd4 {[%clk
01:27:46]} {[%emt 00:01:08]} exd4 {[%clk 01:04:41]} {[%emt 00:00:23]} 19. a4
{[%clk 01:25:10]} {[%emt 00:03:07]} Ne5 {[%clk 01:01:31]} {[%emt 00:03:40]} 20.
h3 {[%clk 01:23:30]} {[%emt 00:02:08]} b6 {[%clk 00:55:24]} {[%emt 00:06:38]}
21. Qd1 {[%clk 01:20:06]} {[%emt 00:03:54]} f5 {[%clk 00:55:09]} {[%emt
00:00:46]} 22. f4 {[%clk 01:19:21]} {[%emt 00:01:15]} Nd7 {[%clk 00:53:10]}
{[%emt 00:02:29]} 23. exf5 {[%clk 01:19:23]} {[%emt 00:00:27]} Rxf5 {[%clk
00:52:47]} {[%emt 00:00:53]} 24. Qe2 {[%clk 01:17:50]} {[%emt 00:02:02]} Rf8
{[%clk 00:52:23]} {[%emt 00:00:55]} 25. Qe6+ {[%clk 01:18:13]} {[%emt
00:00:07]} Kh8 {[%clk 00:52:34]} {[%emt 00:00:19]} 26. Qxd6 {[%clk 01:17:56]}
{[%emt 00:00:47]} Nf6 {[%clk 00:52:14]} {[%emt 00:00:50]} 27. bxc5 {[%clk
01:17:26]} {[%emt 00:01:01]} Rd8 {[%clk 00:48:44]} {[%emt 00:04:00]} 28. Qc6
{[%clk 01:17:21]} {[%emt 00:00:32]} Qxc6 {[%clk 00:47:25]} {[%emt 00:01:51]} 29.
Bxc6 {[%clk 01:17:43]} {[%emt 00:00:08]} bxc5 {[%clk 00:47:52]} {[%emt
00:00:03]} 30. Ba3 {[%clk 01:17:58]} {[%emt 00:00:15]} Rxb1 {[%clk 00:47:05]}
{[%emt 00:01:17]} 31. Rd1 Rc1 32. Rxc1 Rc8 33. Rb1 Re8 34. Bf3 Re5 35. Bxc5 Re3
36. Rb8+ Ng8 {[%clk 00:47:05]} 37. Bd5 {[%clk 01:18:16]} Nf6 {[%clk 00:46:39]}
{[%emt 00:02:40]} 38. Bf3+ {[%clk 01:19:09]} {[%emt 00:00:05]} Ng8 {[%clk
00:46:57]} {[%emt 00:00:13]} 39. Bd5 {[%clk 01:19:31]} {[%emt 00:00:36]} 1-0